[Event "Early-Titled-Tuesday-Blitz-February-13-2024"]
[Site "Chess.com"]
[Date "2024.02.13"]
[Round "1"]
[White "santosalberto1987"]
[Black "C_K_G"]
[Result "1-0"]
[WhiteElo "2573"]
[BlackElo "2113"]
[TimeControl "180+1"]
[EndTime "8:06:29 PST"]
[Termination "santosalberto1987 won by checkmate"]

1. e4 {[%clk 0:03:00.9]} 1... c5 {[%clk 0:02:59.4]} 2. Nf3 {[%clk 0:02:59.4]}
2... d6 {[%clk 0:02:59.4]} 3. Bb5+ {[%clk 0:02:43.3]} 3... Bd7 {[%clk
0:02:59.5]} 4. c4 {[%clk 0:02:42.3]} 4... Nc6 {[%clk 0:02:57.2]} 5. Nc3 {[%clk
0:02:39.3]} 5... Nf6 {[%clk 0:02:55.7]} 6. O-O {[%clk 0:02:36.9]} 6... e6 {[%clk
0:02:56]} 7. d4 {[%clk 0:02:20.3]} 7... cxd4 {[%clk 0:02:41.8]} 8. Nxd4 {[%clk
0:02:20.2]} 8... Be7 {[%clk 0:02:36.8]} 9. Be3 {[%clk 0:02:10.7]} 9... O-O
{[%clk 0:02:34.7]} 10. f4 {[%clk 0:02:09.2]} 10... a6 {[%clk 0:02:27.9]} 11.
Bxc6 {[%clk 0:02:07.5]} 11... Bxc6 {[%clk 0:02:28.8]} 12. Nxc6 {[%clk
0:02:06.1]} 12... bxc6 {[%clk 0:02:29.7]} 13. h3 {[%clk 0:02:04.4]} 13... Qa5
{[%clk 0:02:21.6]} 14. Qd2 {[%clk 0:02:03]} 14... Rfe8 {[%clk 0:02:12.6]} 15. b3
{[%clk 0:01:57.9]} 15... Rad8 {[%clk 0:01:42.4]} 16. Rad1 {[%clk 0:01:54.8]}
16... Qc7 {[%clk 0:01:37.3]} 17. Kh1 {[%clk 0:01:33.3]} 17... d5 {[%clk
0:01:33.4]} 18. cxd5 {[%clk 0:01:32]} 18... cxd5 {[%clk 0:01:32.5]} 19. e5
{[%clk 0:01:32.1]} 19... Nd7 {[%clk 0:01:16.8]} 20. Ne2 {[%clk 0:01:28.8]} 20...
Rc8 {[%clk 0:01:10.6]} 21. Rc1 {[%clk 0:01:28.4]} 21... Qb7 {[%clk 0:01:08.9]}
22. Nd4 {[%clk 0:01:27.2]} 22... Nc5 {[%clk 0:01:06.6]} 23. Qe2 {[%clk
0:01:13.9]} 23... Ne4 {[%clk 0:01:02.7]} 24. Kh2 {[%clk 0:01:13.7]} 24... Rxc1
{[%clk 0:01:01.9]} 25. Rxc1 {[%clk 0:01:13.4]} 25... Rc8 {[%clk 0:01:02.4]} 26.
Rxc8+ {[%clk 0:01:13.1]} 26... Qxc8 {[%clk 0:01:03.3]} 27. Qc2 {[%clk
0:01:10.3]} 27... Qb7 {[%clk 0:00:46.3]} 28. Qc6 {[%clk 0:01:07.3]} 28... Qb4
{[%clk 0:00:37.6]} 29. Qe8+ {[%clk 0:01:02.6]} 29... Bf8 {[%clk 0:00:37]} 30.
Nc6 {[%clk 0:01:03.2]} 30... Qa3 {[%clk 0:00:22.7]} 31. b4 {[%clk 0:01:03.1]}
31... h5 {[%clk 0:00:16.8]} 32. Ne7+ {[%clk 0:00:55.5]} 32... Kh7 {[%clk
0:00:17.3]} 33. Qxf8 {[%clk 0:00:55.9]} 33... Qxe3 {[%clk 0:00:17.2]} 34. Qg8+
{[%clk 0:00:56.2]} 34... Kh6 {[%clk 0:00:16.5]} 35. Qh8# {[%clk 0:00:56.7]} 1-0

[Event "Early-Titled-Tuesday-Blitz-February-13-2024"]
[Site "Chess.com"]
[Date "2024.02.13"]
[Round "1"]
[White "Chess_Gainz"]
[Black "wonderfultime"]
[Result "0-1"]
[WhiteElo "2539"]
[BlackElo "3062"]
[TimeControl "180+1"]
[EndTime "8:06:31 PST"]
[Termination "wonderfultime won on time"]

1. e4 {[%clk 0:03:00.9]} 1... e5 {[%clk 0:02:39.2]} 2. Nf3 {[%clk 0:03:00.2]}
2... Nc6 {[%clk 0:02:33.5]} 3. Bb5 {[%clk 0:02:59.2]} 3... a6 {[%clk 0:02:33.4]}
4. Ba4 {[%clk 0:02:58.9]} 4... Bc5 {[%clk 0:02:33.5]} 5. c3 {[%clk 0:02:54.2]}
5... Nge7 {[%clk 0:02:33.6]} 6. O-O {[%clk 0:02:54.2]} 6... Ng6 {[%clk
0:02:32.3]} 7. d4 {[%clk 0:02:54.2]} 7... Ba7 {[%clk 0:02:32.8]} 8. Be3 {[%clk
0:02:49]} 8... O-O {[%clk 0:02:31.9]} 9. Re1 {[%clk 0:02:32]} 9... d6 {[%clk
0:02:31.1]} 10. Nbd2 {[%clk 0:02:31.7]} 10... Kh8 {[%clk 0:02:20.4]} 11. Bc2
{[%clk 0:02:23.5]} 11... h6 {[%clk 0:02:16]} 12. h3 {[%clk 0:02:18.9]} 12... f5
{[%clk 0:02:15.9]} 13. exf5 {[%clk 0:02:17.9]} 13... Bxf5 {[%clk 0:02:16.8]} 14.
Bxf5 {[%clk 0:01:49.3]} 14... Rxf5 {[%clk 0:02:17.7]} 15. Qc2 {[%clk 0:01:49.3]}
15... Qd7 {[%clk 0:02:01.2]} 16. Rad1 {[%clk 0:01:43]} 16... exd4 {[%clk
0:01:51.3]} 17. Nxd4 {[%clk 0:01:30]} 17... Nxd4 {[%clk 0:01:50.8]} 18. cxd4
{[%clk 0:01:25.9]} 18... Raf8 {[%clk 0:01:50.3]} 19. Ne4 {[%clk 0:01:13]} 19...
Nf4 {[%clk 0:01:26.1]} 20. Ng3 {[%clk 0:01:11.5]} 20... R5f7 {[%clk 0:01:25.2]}
21. d5 {[%clk 0:00:32.1]} 21... Bb6 {[%clk 0:01:03.5]} 22. Bxb6 {[%clk
0:00:19.5]} 22... cxb6 {[%clk 0:01:04.4]} 23. Qe4 {[%clk 0:00:14.4]} 23... Qb5
{[%clk 0:00:56.9]} 24. b3 {[%clk 0:00:12.7]} 24... Qc5 {[%clk 0:00:57.4]} 25.
Qe3 {[%clk 0:00:11.6]} 25... Qc2 {[%clk 0:00:56.1]} 26. Rd2 {[%clk 0:00:10.2]}
26... Qg6 {[%clk 0:00:56.7]} 27. Qe4 {[%clk 0:00:06.9]} 27... Qg5 {[%clk
0:00:56.6]} 28. Kh2 {[%clk 0:00:06.5]} 28... h5 {[%clk 0:00:56.6]} 29. Nf1
{[%clk 0:00:01.8]} 29... Ng6 {[%clk 0:00:52.9]} 0-1

[Event "Early-Titled-Tuesday-Blitz-February-13-2024"]
[Site "Chess.com"]
[Date "2024.02.13"]
[Round "1"]
[White "Eeleyah"]
[Black "banhgiahuy2606"]
[Result "0-1"]
[WhiteElo "2366"]
[BlackElo "2699"]
[TimeControl "180+1"]
[EndTime "8:06:36 PST"]
[Termination "banhgiahuy2606 won by resignation"]

1. d4 {[%clk 0:03:00.9]} 1... Nf6 {[%clk 0:02:59.5]} 2. c4 {[%clk 0:03:00.5]}
2... g6 {[%clk 0:03:00.1]} 3. g3 {[%clk 0:03:00.6]} 3... Bg7 {[%clk 0:03:00.4]}
4. Bg2 {[%clk 0:03:01]} 4... O-O {[%clk 0:03:00.2]} 5. Nc3 {[%clk 0:03:00.7]}
5... d6 {[%clk 0:03:01.1]} 6. Nf3 {[%clk 0:03:00]} 6... Bf5 {[%clk 0:03:01.2]}
7. Nh4 {[%clk 0:02:58.9]} 7... Bc8 {[%clk 0:03:00.9]} 8. O-O {[%clk 0:02:58.9]}
8... c5 {[%clk 0:03:00.4]} 9. d5 {[%clk 0:02:57.7]} 9... a6 {[%clk 0:02:54.9]}
10. Nf3 {[%clk 0:02:54.1]} 10... b5 {[%clk 0:02:54.4]} 11. cxb5 {[%clk
0:02:52.7]} 11... axb5 {[%clk 0:02:55.3]} 12. Nxb5 {[%clk 0:02:53]} 12... Ba6
{[%clk 0:02:51.6]} 13. Nc3 {[%clk 0:02:51.3]} 13... Nbd7 {[%clk 0:02:51.8]} 14.
Re1 {[%clk 0:02:50]} 14... Qa5 {[%clk 0:02:51.2]} 15. Qc2 {[%clk 0:02:43.3]}
15... Rfb8 {[%clk 0:02:50.3]} 16. h3 {[%clk 0:02:31.6]} 16... Ne8 {[%clk
0:02:29.2]} 17. Bd2 {[%clk 0:02:20.3]} 17... Nc7 {[%clk 0:02:25.6]} 18. a4
{[%clk 0:02:15.9]} 18... Qb6 {[%clk 0:02:21.4]} 19. a5 {[%clk 0:02:12.7]} 19...
Qxb2 {[%clk 0:02:18.4]} 20. Qxb2 {[%clk 0:02:12]} 20... Rxb2 {[%clk 0:02:19.3]}
21. Na4 {[%clk 0:02:06.1]} 21... Rxd2 {[%clk 0:02:15.1]} 22. Nxd2 {[%clk
0:02:06.2]} 22... Bxa1 {[%clk 0:02:15]} 23. Rxa1 {[%clk 0:02:06.2]} 23... Bxe2
{[%clk 0:02:15.4]} 24. Nb3 {[%clk 0:01:54.8]} 24... Bc4 {[%clk 0:02:12.8]} 25.
Nb6 {[%clk 0:01:45.8]} 25... Bxb3 {[%clk 0:02:03.7]} 26. Nxa8 {[%clk 0:01:44.4]}
26... Nxa8 {[%clk 0:02:04.3]} 27. Rb1 {[%clk 0:01:42.9]} 27... c4 {[%clk
0:02:04.3]} 28. Bf1 {[%clk 0:01:42.3]} 28... e6 {[%clk 0:01:57.8]} 29. dxe6
{[%clk 0:01:13]} 29... fxe6 {[%clk 0:01:57.2]} 30. Bxc4 {[%clk 0:01:10.7]} 30...
Bxc4 {[%clk 0:01:56.4]} 31. Rb7 {[%clk 0:01:10.6]} 31... Nc5 {[%clk 0:01:40.3]}
32. Rb8+ {[%clk 0:01:09.4]} 32... Kf7 {[%clk 0:01:40.6]} 33. Rxa8 {[%clk
0:01:09.4]} 33... d5 {[%clk 0:01:41.1]} 34. f4 {[%clk 0:01:02.7]} 34... Kf6
{[%clk 0:01:40.8]} 35. Kf2 {[%clk 0:01:02.6]} 35... e5 {[%clk 0:01:36]} 36. Ke3
{[%clk 0:01:00.9]} 36... d4+ {[%clk 0:01:35.8]} 37. Kd2 {[%clk 0:01:00.4]} 37...
exf4 {[%clk 0:01:34.7]} 38. gxf4 {[%clk 0:00:59.6]} 38... Kf5 {[%clk 0:01:35]}
39. Rf8+ {[%clk 0:00:59]} 39... Ke4 {[%clk 0:01:35.1]} 40. Rd8 {[%clk
0:00:54.2]} 40... Nb3+ {[%clk 0:01:33.8]} 41. Kc2 {[%clk 0:00:54.1]} 41... Nxa5
{[%clk 0:01:34.4]} 42. Ra8 {[%clk 0:00:48]} 42... Nc6 {[%clk 0:01:32.6]} 43. Rc8
{[%clk 0:00:47.8]} 43... Nb4+ {[%clk 0:01:31.8]} 44. Kd2 {[%clk 0:00:46.4]}
44... Be6 {[%clk 0:01:31.6]} 45. Re8 {[%clk 0:00:44.8]} 45... Kd5 {[%clk
0:01:31.3]} 46. h4 {[%clk 0:00:43.6]} 46... Bf5 {[%clk 0:01:29.5]} 47. Rd8+
{[%clk 0:00:43]} 47... Ke4 {[%clk 0:01:29.2]} 48. Re8+ {[%clk 0:00:43.3]} 48...
Kxf4 {[%clk 0:01:29.1]} 49. Rh8 {[%clk 0:00:43.7]} 49... h5 {[%clk 0:01:29]} 50.
Rd8 {[%clk 0:00:44]} 50... d3 {[%clk 0:01:27.1]} 51. Rd4+ {[%clk 0:00:44.1]}
51... Kg3 {[%clk 0:01:24.9]} 52. Rxb4 {[%clk 0:00:44.1]} 52... Kf3 {[%clk
0:01:25.8]} 53. Rd4 {[%clk 0:00:43.4]} 53... Kf2 {[%clk 0:01:26.1]} 54. Rxd3
{[%clk 0:00:42.5]} 54... Bxd3 {[%clk 0:01:25.5]} 55. Kxd3 {[%clk 0:00:42.8]}
55... Kg3 {[%clk 0:01:26.2]} 0-1

[Event "Early-Titled-Tuesday-Blitz-February-13-2024"]
[Site "Chess.com"]
[Date "2024.02.13"]
[Round "1"]
[White "DvaHrasta"]
[Black "VladimirKramnik"]
[Result "0-1"]
[WhiteElo "2509"]
[BlackElo "2928"]
[TimeControl "180+1"]
[EndTime "8:06:39 PST"]
[Termination "VladimirKramnik won on time"]

1. c4 {[%clk 0:03:00.9]} 1... e5 {[%clk 0:02:57.9]} 2. g3 {[%clk 0:03:00.9]}
2... Nc6 {[%clk 0:02:56.3]} 3. Bg2 {[%clk 0:03:00.8]} 3... g6 {[%clk 0:02:57]}
4. Nc3 {[%clk 0:02:59.9]} 4... Bg7 {[%clk 0:02:57.4]} 5. Nf3 {[%clk 0:03:00.1]}
5... d6 {[%clk 0:02:55.8]} 6. O-O {[%clk 0:02:59.3]} 6... f5 {[%clk 0:02:52.2]}
7. d3 {[%clk 0:02:59.4]} 7... Nf6 {[%clk 0:02:51.6]} 8. Rb1 {[%clk 0:02:59.5]}
8... O-O {[%clk 0:02:50.4]} 9. b4 {[%clk 0:02:59.1]} 9... a6 {[%clk 0:02:49.3]}
10. a4 {[%clk 0:02:58.6]} 10... h6 {[%clk 0:02:45.2]} 11. b5 {[%clk 0:02:58.5]}
11... axb5 {[%clk 0:02:44.2]} 12. axb5 {[%clk 0:02:58.5]} 12... Ne7 {[%clk
0:02:43.8]} 13. e4 {[%clk 0:02:55.5]} 13... g5 {[%clk 0:02:33.9]} 14. exf5
{[%clk 0:02:47.1]} 14... Bxf5 {[%clk 0:02:33.2]} 15. Ne1 {[%clk 0:02:36.3]}
15... Qc8 {[%clk 0:02:24.5]} 16. f4 {[%clk 0:02:32.8]} 16... exf4 {[%clk
0:02:17.5]} 17. gxf4 {[%clk 0:02:32.4]} 17... gxf4 {[%clk 0:02:13]} 18. Bxf4
{[%clk 0:02:30.4]} 18... Ng6 {[%clk 0:02:12.3]} 19. Bd2 {[%clk 0:02:23.7]} 19...
Nh4 {[%clk 0:02:04.6]} 20. Nd5 {[%clk 0:02:16]} 20... Nxd5 {[%clk 0:01:59.4]}
21. Bxd5+ {[%clk 0:02:15.4]} 21... Kh7 {[%clk 0:01:59.4]} 22. Qh5 {[%clk
0:01:38.6]} 22... c6 {[%clk 0:01:56.2]} 23. Qxh4 {[%clk 0:01:27.7]} 23... cxd5
{[%clk 0:01:51.9]} 24. Bb4 {[%clk 0:00:54.4]} 24... Qe6 {[%clk 0:01:31.8]} 25.
Nf3 {[%clk 0:00:45.9]} 25... Qg6+ {[%clk 0:01:14.8]} 26. Kh1 {[%clk 0:00:31.7]}
26... Bxd3 {[%clk 0:01:08.9]} 27. Rg1 {[%clk 0:00:29.8]} 27... Bxb1 {[%clk
0:01:00.3]} 28. Rxg6 {[%clk 0:00:27.5]} 28... Bxg6 {[%clk 0:01:00.9]} 29. Ng5+
{[%clk 0:00:16.8]} 29... Kg8 {[%clk 0:01:01.2]} 30. Bxd6 {[%clk 0:00:04.6]}
30... hxg5 {[%clk 0:00:56.9]} 31. Qxg5 {[%clk 0:00:03.7]} 31... Be4+ {[%clk
0:00:55.5]} 0-1

[Event "Early-Titled-Tuesday-Blitz-February-13-2024"]
[Site "Chess.com"]
[Date "2024.02.13"]
[Round "1"]
[White "GaiozNigalidze"]
[Black "KanalSzachowy"]
[Result "1-0"]
[WhiteElo "2707"]
[BlackElo "2378"]
[TimeControl "180+1"]
[EndTime "8:06:44 PST"]
[Termination "GaiozNigalidze won by checkmate"]

1. d4 {[%clk 0:03:00.9]} 1... Nf6 {[%clk 0:02:59.5]} 2. c4 {[%clk 0:03:00.9]}
2... e6 {[%clk 0:02:59.9]} 3. Nf3 {[%clk 0:02:59.3]} 3... Bb4+ {[%clk
0:02:59.5]} 4. Bd2 {[%clk 0:02:58.4]} 4... Qe7 {[%clk 0:02:59.7]} 5. e3 {[%clk
0:02:53.4]} 5... Nc6 {[%clk 0:02:54.4]} 6. Bd3 {[%clk 0:02:44]} 6... Bxd2+
{[%clk 0:02:51.7]} 7. Nbxd2 {[%clk 0:02:43.6]} 7... d6 {[%clk 0:02:50.6]} 8. O-O
{[%clk 0:02:39.6]} 8... O-O {[%clk 0:02:49.1]} 9. a3 {[%clk 0:02:22.2]} 9... a5
{[%clk 0:02:48.7]} 10. Qc2 {[%clk 0:02:21.5]} 10... e5 {[%clk 0:02:47.9]} 11. d5
{[%clk 0:02:21.1]} 11... Nb8 {[%clk 0:02:47.4]} 12. b4 {[%clk 0:02:18.1]} 12...
Na6 {[%clk 0:02:32.3]} 13. Rab1 {[%clk 0:02:12.5]} 13... Bg4 {[%clk 0:02:22.9]}
14. h3 {[%clk 0:02:07.4]} 14... Bxf3 {[%clk 0:02:16.2]} 15. gxf3 {[%clk
0:02:08.3]} 15... g6 {[%clk 0:02:10.3]} 16. Kh2 {[%clk 0:02:03.8]} 16... Nh5
{[%clk 0:01:52.3]} 17. Rg1 {[%clk 0:01:58.7]} 17... Kh8 {[%clk 0:01:50.3]} 18.
Rg2 {[%clk 0:01:50.5]} 18... f5 {[%clk 0:01:49]} 19. Qc3 {[%clk 0:01:39.8]}
19... f4 {[%clk 0:01:20.1]} 20. e4 {[%clk 0:01:28.8]} 20... b6 {[%clk
0:00:57.2]} 21. c5 {[%clk 0:01:10.7]} 21... axb4 {[%clk 0:00:52]} 22. axb4
{[%clk 0:01:10.2]} 22... bxc5 {[%clk 0:00:50.9]} 23. Bxa6 {[%clk 0:01:10.2]}
23... Rxa6 {[%clk 0:00:46.8]} 24. bxc5 {[%clk 0:01:10.9]} 24... Rfa8 {[%clk
0:00:34.8]} 25. Nc4 {[%clk 0:01:00.3]} 25... Ng7 {[%clk 0:00:21.4]} 26. Rb7
{[%clk 0:00:52.9]} 26... Ne8 {[%clk 0:00:16.1]} 27. cxd6 {[%clk 0:00:46.6]}
27... Nxd6 {[%clk 0:00:16.1]} 28. Nxe5 {[%clk 0:00:46.8]} 28... Ra3 {[%clk
0:00:14.4]} 29. Nf7+ {[%clk 0:00:30.6]} 29... Kg8 {[%clk 0:00:12.9]} 30. Nh6+
{[%clk 0:00:30.6]} 30... Kf8 {[%clk 0:00:11.1]} 31. Qh8# {[%clk 0:00:31.3]} 1-0

[Event "Early-Titled-Tuesday-Blitz-February-13-2024"]
[Site "Chess.com"]
[Date "2024.02.13"]
[Round "1"]
[White "HalfIsCrayfish"]
[Black "Fjal"]
[Result "1-0"]
[WhiteElo "2587"]
[BlackElo "2157"]
[TimeControl "180+1"]
[EndTime "8:06:44 PST"]
[Termination "HalfIsCrayfish won by resignation"]

1. d4 {[%clk 0:03:00.9]} 1... d6 {[%clk 0:02:45.7]} 2. c4 {[%clk 0:03:01.2]}
2... e5 {[%clk 0:02:44.9]} 3. Nf3 {[%clk 0:03:01.2]} 3... e4 {[%clk 0:02:45.1]}
4. Nfd2 {[%clk 0:03:00.7]} 4... f5 {[%clk 0:02:45.9]} 5. e3 {[%clk 0:03:00.7]}
5... Nf6 {[%clk 0:02:46.8]} 6. Nc3 {[%clk 0:03:00.9]} 6... g6 {[%clk 0:02:46.2]}
7. b3 {[%clk 0:03:00.2]} 7... Bg7 {[%clk 0:02:46.8]} 8. Bb2 {[%clk 0:03:01]}
8... O-O {[%clk 0:02:47.4]} 9. Be2 {[%clk 0:02:58.5]} 9... c6 {[%clk 0:02:48]}
10. O-O {[%clk 0:02:51.9]} 10... Qe7 {[%clk 0:02:48.4]} 11. Qc2 {[%clk
0:02:48.7]} 11... Na6 {[%clk 0:02:45.5]} 12. a3 {[%clk 0:02:48.5]} 12... Nc7
{[%clk 0:02:45.5]} 13. b4 {[%clk 0:02:47.8]} 13... Bd7 {[%clk 0:02:33.9]} 14. a4
{[%clk 0:02:31.5]} 14... Rae8 {[%clk 0:02:33.1]} 15. b5 {[%clk 0:02:28.4]} 15...
g5 {[%clk 0:02:32.3]} 16. Ba3 {[%clk 0:02:20.8]} 16... f4 {[%clk 0:02:27.4]} 17.
Kh1 {[%clk 0:01:55.6]} 17... c5 {[%clk 0:02:02.5]} 18. dxc5 {[%clk 0:01:40.3]}
18... dxc5 {[%clk 0:02:03.4]} 19. Bb2 {[%clk 0:01:39]} 19... b6 {[%clk
0:02:03.3]} 20. a5 {[%clk 0:01:38.6]} 20... Ng4 {[%clk 0:01:48.7]} 21. Bxg4
{[%clk 0:01:35.2]} 21... Bxg4 {[%clk 0:01:48.3]} 22. axb6 {[%clk 0:01:24.2]}
22... axb6 {[%clk 0:01:45]} 23. Ra7 {[%clk 0:01:23.9]} 23... f3 {[%clk
0:01:45.1]} 24. g3 {[%clk 0:01:16.9]} 24... Bf5 {[%clk 0:01:27.4]} 25. Nd5
{[%clk 0:01:15.7]} 25... Nxd5 {[%clk 0:01:17.3]} 26. Rxe7 {[%clk 0:01:11]} 26...
Nxe7 {[%clk 0:01:15.2]} 27. Bxg7 {[%clk 0:01:10.9]} 27... Kxg7 {[%clk
0:01:16.1]} 28. Nb1 {[%clk 0:01:09.6]} 28... Rf6 {[%clk 0:01:09.6]} 29. Nc3
{[%clk 0:01:07.8]} 29... Rh6 {[%clk 0:01:07.9]} 30. Rd1 {[%clk 0:01:05.3]} 30...
Ra8 {[%clk 0:00:58.2]} 31. Nd5 {[%clk 0:01:00.1]} 31... Nxd5 {[%clk 0:00:54.2]}
32. Rxd5 {[%clk 0:01:00.1]} 32... Ra1+ {[%clk 0:00:53.2]} 33. Rd1 {[%clk
0:01:00.6]} 33... Rxd1+ {[%clk 0:00:42.1]} 34. Qxd1 {[%clk 0:01:01.5]} 34... Re6
{[%clk 0:00:40.2]} 35. Qd5 {[%clk 0:00:51.6]} 35... Kg6 {[%clk 0:00:33.9]} 36.
Qd8 {[%clk 0:00:46.4]} 36... h5 {[%clk 0:00:33.5]} 37. h4 {[%clk 0:00:44.1]}
37... g4 {[%clk 0:00:33.5]} 38. Qg5+ {[%clk 0:00:43.3]} 38... Kf7 {[%clk
0:00:29.2]} 39. Qxf5+ {[%clk 0:00:43.7]} 39... Ke7 {[%clk 0:00:28]} 40. Qxh5
{[%clk 0:00:42.5]} 1-0

[Event "Early-Titled-Tuesday-Blitz-February-13-2024"]
[Site "Chess.com"]
[Date "2024.02.13"]
[Round "1"]
[White "Ditman2007"]
[Black "margarita_2703"]
[Result "1-0"]
[WhiteElo "2675"]
[BlackElo "2348"]
[TimeControl "180+1"]
[EndTime "8:06:45 PST"]
[Termination "Ditman2007 won by resignation"]

1. e4 {[%clk 0:02:54.8]} 1... e5 {[%clk 0:02:59.6]} 2. Nf3 {[%clk 0:02:53.7]}
2... Nc6 {[%clk 0:02:57.6]} 3. Bb5 {[%clk 0:02:53.4]} 3... a6 {[%clk 0:02:57.1]}
4. Ba4 {[%clk 0:02:53.5]} 4... Nf6 {[%clk 0:02:57]} 5. O-O {[%clk 0:02:52.3]}
5... Nxe4 {[%clk 0:02:50.1]} 6. d4 {[%clk 0:02:50.1]} 6... b5 {[%clk 0:02:46.4]}
7. Bb3 {[%clk 0:02:50]} 7... d5 {[%clk 0:02:47.1]} 8. dxe5 {[%clk 0:02:50.2]}
8... Be6 {[%clk 0:02:47.6]} 9. c3 {[%clk 0:02:49]} 9... Bc5 {[%clk 0:02:24.3]}
10. Nbd2 {[%clk 0:02:35.3]} 10... O-O {[%clk 0:02:08.1]} 11. Bc2 {[%clk
0:02:35]} 11... Nxf2 {[%clk 0:02:03.9]} 12. Rxf2 {[%clk 0:02:35.9]} 12... Bxf2+
{[%clk 0:02:04.1]} 13. Kxf2 {[%clk 0:02:36.8]} 13... f6 {[%clk 0:02:02.5]} 14.
exf6 {[%clk 0:02:29.8]} 14... Qxf6 {[%clk 0:02:03.4]} 15. Kg1 {[%clk 0:01:47.6]}
15... Rae8 {[%clk 0:01:59]} 16. Nf1 {[%clk 0:01:43.9]} 16... Ne5 {[%clk
0:01:41.6]} 17. Be3 {[%clk 0:01:25.3]} 17... Nxf3+ {[%clk 0:01:38.9]} 18. Qxf3
{[%clk 0:01:26.2]} 18... Qxf3 {[%clk 0:01:36.2]} 19. gxf3 {[%clk 0:01:27.1]}
19... Rxf3 {[%clk 0:01:36.6]} 20. Bd1 {[%clk 0:01:16.8]} 20... Rf6 {[%clk
0:01:33.5]} 21. Ng3 {[%clk 0:01:16.6]} 21... Bh3 {[%clk 0:01:31.9]} 22. Bd2
{[%clk 0:01:10.4]} 22... g6 {[%clk 0:01:22.8]} 23. Bb3 {[%clk 0:01:09.9]} 23...
c6 {[%clk 0:01:22.7]} 24. Re1 {[%clk 0:01:10.1]} 24... Ref8 {[%clk 0:01:10.2]}
25. Bh6 {[%clk 0:01:07.3]} 25... Rd8 {[%clk 0:01:06.3]} 26. Bg5 {[%clk
0:00:44.1]} 26... Rdf8 {[%clk 0:01:02.5]} 27. Bxf6 {[%clk 0:00:41.8]} 27... Rxf6
{[%clk 0:01:03.4]} 28. Ne4 {[%clk 0:00:40.1]} 28... Re6 {[%clk 0:00:42.4]} 29.
Kf2 {[%clk 0:00:39.3]} 29... Kg7 {[%clk 0:00:42.5]} 30. Ng5 {[%clk 0:00:35.3]}
30... Rf6+ {[%clk 0:00:28.6]} 31. Kg3 {[%clk 0:00:35.3]} 31... Kh6 {[%clk
0:00:14.8]} 32. Nxh3 {[%clk 0:00:35]} 1-0

[Event "Early-Titled-Tuesday-Blitz-February-13-2024"]
[Site "Chess.com"]
[Date "2024.02.13"]
[Round "1"]
[White "EvgenyBurmakin"]
[Black "Andrey_Klymchuk"]
[Result "0-1"]
[WhiteElo "2421"]
[BlackElo "2752"]
[TimeControl "180+1"]
[EndTime "8:06:47 PST"]
[Termination "Andrey_Klymchuk won by resignation"]

1. e4 {[%clk 0:03:00.9]} 1... c5 {[%clk 0:02:59.6]} 2. Nc3 {[%clk 0:02:58.4]}
2... Nc6 {[%clk 0:02:59.4]} 3. Bb5 {[%clk 0:02:59]} 3... g6 {[%clk 0:02:58.8]}
4. Bxc6 {[%clk 0:02:57.1]} 4... bxc6 {[%clk 0:02:57.9]} 5. f4 {[%clk 0:02:57.8]}
5... Bg7 {[%clk 0:02:57.4]} 6. Nf3 {[%clk 0:02:58.2]} 6... d6 {[%clk 0:02:56.6]}
7. O-O {[%clk 0:02:58.1]} 7... Nh6 {[%clk 0:02:56.8]} 8. d3 {[%clk 0:02:57.8]}
8... O-O {[%clk 0:02:55.5]} 9. Qe1 {[%clk 0:02:57.4]} 9... f5 {[%clk 0:02:53.4]}
10. e5 {[%clk 0:02:50]} 10... Qc7 {[%clk 0:02:46.9]} 11. Bd2 {[%clk 0:02:42.8]}
11... Nf7 {[%clk 0:02:43.6]} 12. Qh4 {[%clk 0:02:32.8]} 12... dxe5 {[%clk
0:02:36.5]} 13. fxe5 {[%clk 0:02:33.7]} 13... Nxe5 {[%clk 0:02:30.2]} 14. Nxe5
{[%clk 0:02:22.7]} 14... Bxe5 {[%clk 0:02:28.4]} 15. Rae1 {[%clk 0:02:19.2]}
15... Rb8 {[%clk 0:02:14.2]} 16. b3 {[%clk 0:02:10.8]} 16... Rb4 {[%clk
0:02:12.4]} 17. Qh3 {[%clk 0:01:46]} 17... Bg7 {[%clk 0:02:04.5]} 18. Na4 {[%clk
0:01:40.3]} 18... Qd6 {[%clk 0:01:49.8]} 19. Bxb4 {[%clk 0:01:18]} 19... cxb4
{[%clk 0:01:49.6]} 20. Qh4 {[%clk 0:01:16.4]} 20... Bd4+ {[%clk 0:01:37.5]} 21.
Kh1 {[%clk 0:01:14.4]} 21... e5 {[%clk 0:01:37.6]} 22. Qg5 {[%clk 0:01:02.6]}
22... c5 {[%clk 0:01:29.8]} 23. Rf3 {[%clk 0:00:58]} 23... Bb7 {[%clk
0:01:27.7]} 24. Rh3 {[%clk 0:00:49.1]} 24... f4 {[%clk 0:01:26.7]} 25. Rf1
{[%clk 0:00:37.1]} 25... Rf7 {[%clk 0:01:23]} 26. Qg4 {[%clk 0:00:31.7]} 26...
Kg7 {[%clk 0:01:07.2]} 27. Qh4 {[%clk 0:00:28.4]} 27... h5 {[%clk 0:01:07.2]}
28. Qg5 {[%clk 0:00:26.2]} 28... Rf5 {[%clk 0:01:03.8]} 29. Qh4 {[%clk 0:00:21]}
29... e4 {[%clk 0:01:01.9]} 30. dxe4 {[%clk 0:00:20.2]} 30... Bxe4 {[%clk
0:01:02.8]} 31. Rhf3 {[%clk 0:00:15.6]} 31... Bxf3 {[%clk 0:00:59.9]} 32. Rxf3
{[%clk 0:00:16.5]} 32... Qe5 {[%clk 0:00:58.1]} 33. Rf1 {[%clk 0:00:16.9]} 33...
Qd5 {[%clk 0:00:51.7]} 34. Qe7+ {[%clk 0:00:12.4]} 34... Rf7 {[%clk 0:00:51.5]}
35. Qe8 {[%clk 0:00:13.1]} 35... f3 {[%clk 0:00:50.3]} 36. gxf3 {[%clk
0:00:09.8]} 36... Rxf3 {[%clk 0:00:50]} 0-1